{"text_format":"1","workbook":"xlsx","n_sheets":2,"sheets":["REGIONAL","BLS"],"not_rendered":{"charts":2,"images":2,"macros":1,"external_links":0,"defined_names":34,"comments":0,"pivot_tables":0},"unopened":[],"bounds":{"document_bytes":16777216,"sheet_cells":100000,"rows_first":2000,"rows_last":500,"rows_between":2000,"halvings":0,"cell_chars":16384,"cell_head_chars":4096},"cells_cut":0,"cells_raw":0,"read":"whole","date_system":"1900"}

{"sheet":"REGIONAL","index":0,"n_rows":97,"n_cols":18,"rows_kept":97,"cut":false,"hidden":false,"merged":[]}
["2022-09-14T01:00:00"]
[]
[null,null,"UNEMPLOYMENT & EMPLOYMENT TOOL",null,null,null,null,null,"V1.0.7.1"]
[null,null,"Data Provided By: Bureau of Labor Statistics",null,null,null,"default"]
[null,null,"www.bls.gov"]
[null,null,"Support:","support@valcre.com"]
[null,null,{"$f":"\"©2016 - \"&YEAR(TODAY())&\" VALCRE. ALL RIGHTS RESERVED.\"","v":"©2016 - 2022 VALCRE. ALL RIGHTS RESERVED."}]
[]
[null,null,"INSTRUCTIONS"]
[null,null,"STEP 1) Select Region and State"]
[null,null,"STEP 2) Click Get Area/County Names Button"]
[null,null,"STEP 3) Select Area and County"]
[null,null,"STEP 4) Click Get Data"]
[]
[null,null,"REGIONAL UNEMPLOYMENT DATA"]
[]
[null,null,"Nation","USA","Show","Yes"]
[null,null,"Region",null,"Show","Yes"]
[null,null,"State",null,"Show","Yes"]
[null,null,"Area",null,"Show","Yes"]
[null,null,"County",null,"Show","Yes"]
[]
[null,null,"UNEMPLOYMENT RATE TRAILING 18 MONTHS"]
[null,null,null,null,"Set Vertical Axis High",0.1]
[null,null,null,null,"Set Vertical Axis Low",0]
[]
[]
[]
[]
[]
[]
[]
[]
[]
[]
[]
[]
[]
[]
[]
[]
[]
[]
[]
[]
[]
[]
[]
[]
[]
[]
[null,null,"UNEMPLOYMENT RATE TRAILING 10 YEARS"]
[null,null,null,null,"Set Vertical Axis High",0.15]
[null,null,null,null,"Set Vertical Axis Low",0]
[]
[]
[]
[]
[]
[]
[]
[]
[]
[]
[]
[]
[]
[]
[]
[]
[]
[]
[]
[]
[]
[]
[]
[]
[]
[null,null,null,null,null,null,null,null,null,null,null,"EMPLOYMENT TRAILING 10 YEARS"]
[]
[]
[null,null,null,null,null,null,null,null,null,null,null,"STATE & REGIONAL EMPLOYMENT"]
[null,null,null,null,null,null,null,null,null,null,null,"YEAR",{"$f":"UPPER(C19)","v":"STATE"},"% CHG.",{"$f":"UPPER(C20)","v":"AREA"},"% CHG.",{"$f":"UPPER(C21)","v":"COUNTY"},"% CHG."]
[null,null,null,null,null,null,null,null,null,null,null,{"$f":"IF($L$95=\"-\",\"-\",L86-1)","v":"-"},{"$f":"IFERROR(VLOOKUP(L85,Regional_EmpStateLookup,2,FALSE),\"-\")","v":"-"},"-",{"$f":"IFERROR(VLOOKUP($L85,Regional_EmpAreaLookup,2,FALSE),\"-\")","v":"-"},"-",{"$f":"IFERROR(VLOOKUP($L85,Regional_EmpCountyLookup,2,FALSE),\"-\")","v":"-"},"-"]
[null,null,null,null,null,null,null,null,null,null,null,{"$f":"IF($L$95=\"-\",\"-\",L87-1)","v":"-"},"-",{"$f":"IFERROR((M86-M85)/M86,\"-\")","v":"-"},"-",{"$f":"IFERROR((O86-O85)/O86,\"-\")","v":"-"},"-",{"$f":"IFERROR((Q86-Q85)/Q86,\"-\")","v":"-"}]
[null,null,null,null,null,null,null,null,null,null,null,"-","-","-","-","-","-","-"]
[null,null,null,null,null,null,null,null,null,null,null,"-","-","-","-","-","-","-"]
[null,null,null,null,null,null,null,null,null,null,null,"-","-","-","-","-","-","-"]
[null,null,null,null,null,null,null,null,null,null,null,"-","-","-","-","-","-","-"]
[null,null,null,null,null,null,null,null,null,null,null,"-","-","-","-","-","-","-"]
[null,null,null,null,null,null,null,null,null,null,null,"-","-","-","-","-","-","-"]
[null,null,null,null,null,null,null,null,null,null,null,"-","-","-","-","-","-","-"]
[null,null,null,null,null,null,null,null,null,null,null,"-","-","-","-","-","-","-"]
[null,null,null,null,null,null,null,null,null,null,null,{"$f":"IF(MIN(BLS!AO2,BLS!AQ2,BLS!AS2)=0,\"-\",MIN(BLS!AO2,BLS!AQ2,BLS!AS2))","v":"-"},"-","-","-","-","-","-"]
[null,null,null,null,null,null,null,null,null,null,null,"CAGR",{"$f":"IFERROR((M95/M86)^(1/(SUBTOTAL(102,L85:L95)-1))-1,\"-\")","v":"-"},"-",{"$f":"IFERROR((O95/O86)^(1/(SUBTOTAL(102,N85:N95)-1))-1,\"-\")","v":"-"},"-",{"$f":"IFERROR((Q95/Q86)^(1/(SUBTOTAL(102,P85:P95)-1))-1,\"-\")","v":"-"},"-"]
[null,null,null,null,null,null,null,null,null,null,null,"Source: U.S. Bureau of Labor Statistics www.bls.gov\n"]

{"sheet":"BLS","index":1,"n_rows":53,"n_cols":60,"rows_kept":53,"cut":false,"hidden":true,"merged":[]}
["L_Area","L_County","L_Region","Nation",null,null,"Region",null,null,"State",null,null,"Area",null,null,"County",null,null,null,null,null,null,null,null,null,null,null,null,null,null,null,null,null,"Month","Nation","Region","State","Area","County",null,"State",null,"Area",null,"County",null,null,null,"Nation",null,"Region",null,"State",null,"Area",null,"County",null,null,"L_State"]
[null,null,"Northeast Region",null,null,null,null,null,null,null,null,null,null,null,null,null,null,null,null,{"$f":"D2&RIGHT(E2,2)","v":""},{"$f":"F2","v":0},{"$f":"IF(G2=\"\",$T2,G2&RIGHT(H2,2))","v":""},{"$f":"I2","v":0},{"$f":"IF(J2=\"\",$T2,J2&RIGHT(K2,2))","v":""},{"$f":"L2","v":0},{"$f":"IF(M2=\"\",$T2,M2&RIGHT(N2,2))","v":""},{"$f":"O2","v":0},{"$f":"IF(P2=\"\",$T2,P2&RIGHT(Q2,2))","v":""},{"$f":"R2","v":0},null,{"$f":"IF(TEXT(AE3-1,\"00\")=\"00\",\"12\",TEXT(AE3-1,\"00\"))","v":{"$error":"#VALUE!"}},{"$f":"IF(AE2=\"12\",LEFT(AF3,4)-1,LEFT(AF3,4))&AE2","v":{"$error":"#VALUE!"}},null,{"$f":"TEXT(DATE(2000,AE2,1),\"mmm\")","v":{"$error":"#VALUE!"}},{"$f":"VLOOKUP(AF2,$T$2:$U$32,2,FALSE)/100","v":{"$error":"#VALUE!"}},{"$f":"VLOOKUP(AF2,$V$2:$W$32,2,FALSE)/100","v":{"$error":"#VALUE!"}},{"$f":"VLOOKUP(AF2,$X$2:$Y$32,2,FALSE)/100","v":{"$error":"#VALUE!"}},{"$f":"VLOOKUP(AF2,$Z$2:$AA$32,2,FALSE)/100","v":{"$error":"#VALUE!"}},{"$f":"VLOOKUP(AF2,$AB$2:$AC$32,2,FALSE)/100","v":{"$error":"#VALUE!"}},null,null,null,null,null,null,null,null,null,null,null,null,null,null,null,null,null,null,null,null,"Alabama"]
[null,null,"Midwest Region",null,null,null,null,null,null,null,null,null,null,null,null,null,null,null,null,"",0,"",0,"",0,"",0,"",0,null,{"$error":"#VALUE!"},{"$error":"#VALUE!"},null,{"$f":"TEXT(DATE(2000,AE3,1),\"mmm\")","v":{"$error":"#VALUE!"}},{"$f":"VLOOKUP(AF3,$T$2:$U$32,2,FALSE)/100","v":{"$error":"#VALUE!"}},{"$error":"#VALUE!"},{"$error":"#VALUE!"},{"$error":"#VALUE!"},{"$error":"#VALUE!"},null,null,null,null,null,null,null,null,null,null,null,null,null,null,null,null,null,null,null,null,"Alaska"]
[null,null,"South Region",null,null,null,null,null,null,null,null,null,null,null,null,null,null,null,null,"",0,"",0,"",0,"",0,"",0,null,{"$error":"#VALUE!"},{"$error":"#VALUE!"},null,{"$f":"TEXT(DATE(2000,AE4,1),\"mmm\")","v":{"$error":"#VALUE!"}},{"$error":"#VALUE!"},{"$error":"#VALUE!"},{"$error":"#VALUE!"},{"$error":"#VALUE!"},{"$error":"#VALUE!"},null,null,null,null,null,null,null,null,null,null,null,null,null,null,null,null,null,null,null,null,"Arizona"]
[null,null,"West Region",null,null,null,null,null,null,null,null,null,null,null,null,null,null,null,null,"",0,"",0,"",0,"",0,"",0,null,{"$error":"#VALUE!"},{"$error":"#VALUE!"},null,{"$f":"TEXT(DATE(2000,AE5,1),\"mmm\")","v":{"$error":"#VALUE!"}},{"$error":"#VALUE!"},{"$error":"#VALUE!"},{"$error":"#VALUE!"},{"$error":"#VALUE!"},{"$error":"#VALUE!"},null,null,null,null,null,null,null,null,null,null,null,null,null,null,null,null,null,null,null,null,"Arkansas"]
[null,null,"New England Division",null,null,null,null,null,null,null,null,null,null,null,null,null,null,null,null,"",0,"",0,"",0,"",0,"",0,null,{"$error":"#VALUE!"},{"$error":"#VALUE!"},null,{"$f":"TEXT(DATE(2000,AE6,1),\"mmm\")","v":{"$error":"#VALUE!"}},{"$error":"#VALUE!"},{"$error":"#VALUE!"},{"$error":"#VALUE!"},{"$error":"#VALUE!"},{"$error":"#VALUE!"},null,null,null,null,null,null,null,null,null,null,null,null,null,null,null,null,null,null,null,null,"California"]
[null,null,"Middle Atlantic Division",null,null,null,null,null,null,null,null,null,null,null,null,null,null,null,null,"",0,"",0,"",0,"",0,"",0,null,{"$error":"#VALUE!"},{"$error":"#VALUE!"},null,{"$f":"LEFT(AF7,4)& \" \"&TEXT(DATE(2000,AE7,1),\"mmm\")","v":{"$error":"#VALUE!"}},{"$error":"#VALUE!"},{"$error":"#VALUE!"},{"$error":"#VALUE!"},{"$error":"#VALUE!"},{"$error":"#VALUE!"},null,null,null,null,null,null,null,null,null,null,null,null,null,null,null,null,null,null,null,null,"Colorado"]
[null,null,"East North Central Division",null,null,null,null,null,null,null,null,null,null,null,null,null,null,null,null,"",0,"",0,"",0,"",0,"",0,null,{"$error":"#VALUE!"},{"$error":"#VALUE!"},null,{"$f":"TEXT(DATE(2000,AE8,1),\"mmm\")","v":{"$error":"#VALUE!"}},{"$error":"#VALUE!"},{"$error":"#VALUE!"},{"$error":"#VALUE!"},{"$error":"#VALUE!"},{"$error":"#VALUE!"},null,null,null,null,null,null,null,null,null,null,null,null,null,null,null,null,null,null,null,null,"Connecticut"]
[null,null,"West North Central Division",null,null,null,null,null,null,null,null,null,null,null,null,null,null,null,null,"",0,"",0,"",0,"",0,"",0,null,{"$error":"#VALUE!"},{"$error":"#VALUE!"},null,{"$error":"#VALUE!"},{"$error":"#VALUE!"},{"$error":"#VALUE!"},{"$error":"#VALUE!"},{"$error":"#VALUE!"},{"$error":"#VALUE!"},null,null,null,null,null,null,null,null,null,null,null,null,null,null,null,null,null,null,null,null,"Delaware"]
[null,null,"South Atlantic Division",null,null,null,null,null,null,null,null,null,null,null,null,null,null,null,null,"",0,"",0,"",0,"",0,"",0,null,{"$error":"#VALUE!"},{"$error":"#VALUE!"},null,{"$error":"#VALUE!"},{"$error":"#VALUE!"},{"$error":"#VALUE!"},{"$error":"#VALUE!"},{"$error":"#VALUE!"},{"$error":"#VALUE!"},null,null,null,null,null,null,null,null,null,null,null,null,null,null,null,null,null,null,null,null,"District of Columbia"]
[null,null,"East South Central Division",null,null,null,null,null,null,null,null,null,null,null,null,null,null,null,null,"",0,"",0,"",0,"",0,"",0,null,{"$error":"#VALUE!"},{"$error":"#VALUE!"},null,{"$error":"#VALUE!"},{"$error":"#VALUE!"},{"$error":"#VALUE!"},{"$error":"#VALUE!"},{"$error":"#VALUE!"},{"$error":"#VALUE!"},null,null,null,null,null,null,null,null,null,null,null,null,null,null,null,null,null,null,null,null,"Florida"]
[null,null,"West South Central Division",null,null,null,null,null,null,null,null,null,null,null,null,null,null,null,null,"",0,"",0,"",0,"",0,"",0,null,{"$error":"#VALUE!"},{"$error":"#VALUE!"},null,{"$error":"#VALUE!"},{"$error":"#VALUE!"},{"$error":"#VALUE!"},{"$error":"#VALUE!"},{"$error":"#VALUE!"},{"$error":"#VALUE!"},null,null,null,null,null,null,null,null,null,null,null,null,null,null,null,null,null,null,null,null,"Georgia"]
[null,null,"Mountain Division",null,null,null,null,null,null,null,null,null,null,null,null,null,null,null,null,"",0,"",0,"",0,"",0,"",0,null,{"$error":"#VALUE!"},{"$error":"#VALUE!"},null,{"$error":"#VALUE!"},{"$error":"#VALUE!"},{"$error":"#VALUE!"},{"$error":"#VALUE!"},{"$error":"#VALUE!"},{"$error":"#VALUE!"},null,null,null,null,null,null,null,null,null,null,null,null,null,null,null,null,null,null,null,null,"Hawaii"]
[null,null,"Pacific Division",null,null,null,null,null,null,null,null,null,null,null,null,null,null,null,null,"",0,"",0,"",0,"",0,"",0,null,{"$error":"#VALUE!"},{"$error":"#VALUE!"},null,{"$error":"#VALUE!"},{"$error":"#VALUE!"},{"$error":"#VALUE!"},{"$error":"#VALUE!"},{"$error":"#VALUE!"},{"$error":"#VALUE!"},null,null,null,null,null,null,null,null,null,null,null,null,null,null,null,null,null,null,null,null,"Idaho"]
[null,null,null,null,null,null,null,null,null,null,null,null,null,null,null,null,null,null,null,"",0,"",0,"",0,"",0,"",0,null,{"$error":"#VALUE!"},{"$error":"#VALUE!"},null,{"$error":"#VALUE!"},{"$error":"#VALUE!"},{"$error":"#VALUE!"},{"$error":"#VALUE!"},{"$error":"#VALUE!"},{"$error":"#VALUE!"},null,null,null,null,null,null,null,null,null,null,null,null,null,null,null,null,null,null,null,null,"Illinois"]
[null,null,null,null,null,null,null,null,null,null,null,null,null,null,null,null,null,null,null,"",0,"",0,"",0,"",0,"",0,null,{"$error":"#VALUE!"},{"$error":"#VALUE!"},null,{"$error":"#VALUE!"},{"$error":"#VALUE!"},{"$error":"#VALUE!"},{"$error":"#VALUE!"},{"$error":"#VALUE!"},{"$error":"#VALUE!"},null,null,null,null,null,null,null,null,null,null,null,null,null,null,null,null,null,null,null,null,"Indiana"]
[null,null,null,null,null,null,null,null,null,null,null,null,null,null,null,null,null,null,null,"",0,"",0,"",0,"",0,"",0,null,{"$error":"#VALUE!"},{"$error":"#VALUE!"},null,{"$error":"#VALUE!"},{"$error":"#VALUE!"},{"$error":"#VALUE!"},{"$error":"#VALUE!"},{"$error":"#VALUE!"},{"$error":"#VALUE!"},null,null,null,null,null,null,null,null,null,null,null,null,null,null,null,null,null,null,null,null,"Iowa"]
[null,null,null,null,null,null,null,null,null,null,null,null,null,null,null,null,null,null,null,"",0,"",0,"",0,"",0,"",0,null,{"$error":"#VALUE!"},{"$error":"#VALUE!"},null,{"$error":"#VALUE!"},{"$error":"#VALUE!"},{"$error":"#VALUE!"},{"$error":"#VALUE!"},{"$error":"#VALUE!"},{"$error":"#VALUE!"},null,null,null,null,null,null,null,null,null,null,null,null,null,null,null,null,null,null,null,null,"Kansas"]
[null,null,null,null,null,null,null,null,null,null,null,null,null,null,null,null,null,null,null,"",0,"",0,"",0,"",0,"",0,null,{"$f":"TEXT(IF(T2=V2=X2=Z2=AB2,RIGHT(T2,2),RIGHT(MIN(VALUE(T2),VALUE(V2),VALUE(X2),VALUE(Z2),VALUE(AB2)),2)),\"00\")","v":{"$error":"#VALUE!"}},{"$f":"MIN(D2,G2,J2,M2,P2)&AE19","v":{"$error":"#VALUE!"}},null,{"$f":"LEFT(AF19,4)& \" \"&TEXT(DATE(2000,AE19,1),\"mmm\")","v":{"$error":"#VALUE!"}},{"$f":"VLOOKUP(AF19,$T$2:$U$32,2,FALSE)/100","v":{"$error":"#VALUE!"}},{"$error":"#VALUE!"},{"$error":"#VALUE!"},{"$error":"#VALUE!"},{"$error":"#VALUE!"},null,null,null,null,null,null,null,null,null,null,null,null,null,null,null,null,null,null,null,null,"Kentucky"]
[null,null,null,null,null,null,null,null,null,null,null,null,null,null,null,null,null,null,null,"",0,"",0,"",0,"",0,"",0,null,null,null,null,null,null,null,null,null,null,null,null,null,null,null,null,null,null,null,null,null,null,null,null,null,null,null,null,null,null,"Louisiana"]
[null,null,null,null,null,null,null,null,null,null,null,null,null,null,null,null,null,null,null,"",0,"",0,"",0,"",0,"",0,null,null,null,null,"Month","Nation","Region","State","Area","County",null,null,null,null,null,null,null,null,null,null,null,null,null,null,null,null,null,null,null,null,"Maine"]
[null,null,null,null,null,null,null,null,null,null,null,null,null,null,null,null,null,null,null,"",0,"",0,"",0,"",0,"",0,null,null,null,null,{"$f":"AH23-1","v":-9},{"$f":"VLOOKUP($AH22,$AW$2:$AX$14,2,FALSE)/100","v":{"$error":"#N/A"}},{"$f":"VLOOKUP($AH22,$AY$2:$AZ$14,2,FALSE)/100","v":{"$error":"#N/A"}},{"$f":"VLOOKUP($AH22,$BA$2:$BB$14,2,FALSE)/100","v":{"$error":"#N/A"}},{"$f":"VLOOKUP($AH22,$BC$2:$BD$14,2,FALSE)/100","v":{"$error":"#N/A"}},{"$f":"VLOOKUP($AH22,$BE$2:$BF$14,2,FALSE)/100","v":{"$error":"#N/A"}},null,null,null,null,null,null,null,null,null,null,null,null,null,null,null,null,null,null,null,null,"Maryland"]
[null,null,null,null,null,null,null,null,null,null,null,null,null,null,null,null,null,null,null,"",0,"",0,"",0,"",0,"",{"$f":"R23","v":0},null,null,null,null,-8,{"$error":"#N/A"},{"$error":"#N/A"},{"$error":"#N/A"},{"$error":"#N/A"},{"$error":"#N/A"},null,null,null,null,null,null,null,null,null,null,null,null,null,null,null,null,null,null,null,null,"Massachusetts"]
[null,null,null,null,null,null,null,null,null,null,null,null,null,null,null,null,null,null,null,"",0,"",0,"",0,"",0,"",0,null,null,null,null,-7,{"$error":"#N/A"},{"$error":"#N/A"},{"$error":"#N/A"},{"$error":"#N/A"},{"$error":"#N/A"},null,null,null,null,null,null,null,null,null,null,null,null,null,null,null,null,null,null,null,null,"Michigan"]
[null,null,null,null,null,null,null,null,null,null,null,null,null,null,null,null,null,null,null,"",0,"",0,"",0,"",0,"",0,null,null,null,null,-6,{"$error":"#N/A"},{"$error":"#N/A"},{"$error":"#N/A"},{"$error":"#N/A"},{"$error":"#N/A"},null,null,null,null,null,null,null,null,null,null,null,null,null,null,null,null,null,null,null,null,"Minnesota"]
[null,null,null,null,null,null,null,null,null,null,null,null,null,null,null,null,null,null,null,"",0,"",0,"",0,"",0,"",0,null,null,null,null,-5,{"$error":"#N/A"},{"$error":"#N/A"},{"$error":"#N/A"},{"$error":"#N/A"},{"$error":"#N/A"},null,null,null,null,null,null,null,null,null,null,null,null,null,null,null,null,null,null,null,null,"Mississippi"]
[null,null,null,null,null,null,null,null,null,null,null,null,null,null,null,null,null,null,null,"",0,"",0,"",0,"",0,"",0,null,null,null,null,-4,{"$error":"#N/A"},{"$error":"#N/A"},{"$error":"#N/A"},{"$error":"#N/A"},{"$error":"#N/A"},null,null,null,null,null,null,null,null,null,null,null,null,null,null,null,null,null,null,null,null,"Missouri"]
[null,null,null,null,null,null,null,null,null,null,null,null,null,null,null,null,null,null,null,"",0,"",0,"",0,"",0,"",0,null,null,null,null,-3,{"$error":"#N/A"},{"$error":"#N/A"},{"$error":"#N/A"},{"$error":"#N/A"},{"$error":"#N/A"},null,null,null,null,null,null,null,null,null,null,null,null,null,null,null,null,null,null,null,null,"Montana"]
[null,null,null,null,null,null,null,null,null,null,null,null,null,null,null,null,null,null,null,"",0,"",0,"",0,"",0,"",0,null,null,null,null,-2,{"$error":"#N/A"},{"$error":"#N/A"},{"$error":"#N/A"},{"$error":"#N/A"},{"$error":"#N/A"},null,null,null,null,null,null,null,null,null,null,null,null,null,null,null,null,null,null,null,null,"Nebraska"]
[null,null,null,2020,"M04",14.7,2020,"M03",4.3,2020,"M03",4.5999999999999996,2020,"M03",4.7,2020,"M03",4.5999999999999996,null,null,null,null,null,null,null,null,null,null,null,null,null,null,null,-1,{"$error":"#N/A"},{"$error":"#N/A"},{"$error":"#N/A"},{"$error":"#N/A"},{"$error":"#N/A"},null,null,null,null,null,null,null,null,null,null,null,null,null,null,null,null,null,null,null,null,"Nevada"]
[null,null,null,2020,"M03",4.4000000000000004,2020,"M02",3.2,2020,"M02",2.5,2020,"M02",2.5,2020,"M02",2.5,null,null,null,null,null,null,null,null,null,null,null,null,null,null,null,{"$f":"IF(AW2=AY2=BA2=BC2=BE2,AW2,MIN(VALUE(AW2),VALUE(AY2),VALUE(BA2),VALUE(BC2),VALUE(BE2)))","v":0},{"$error":"#N/A"},{"$error":"#N/A"},{"$error":"#N/A"},{"$error":"#N/A"},{"$error":"#N/A"},null,null,null,null,null,null,null,null,null,null,null,null,null,null,null,null,null,null,null,null,"New Hampshire"]
[null,null,null,2020,"M02",3.5,2020,"M01",3.5,2020,"M01",3,2020,"M01",3,2020,"M01",2.9,null,null,null,null,null,null,null,null,null,null,null,null,null,null,null,null,null,null,null,null,null,null,null,null,null,null,null,null,null,null,null,null,null,null,null,null,null,null,null,null,null,"New Jersey"]
[null,null,null,2020,"M01",3.5,2016,"M03",4.9000000000000004,2016,"M05",6.8,2016,"M04",6.2,2016,"M04",2.2999999999999998,null,null,null,null,null,null,null,null,null,null,null,null,null,null,null,null,null,null,null,null,null,null,null,null,null,null,null,null,null,null,null,null,null,null,null,null,null,null,null,null,null,"New Mexico"]
[null,null,null,2016,"M04",5,2016,"M02",5,2016,"M04",7.1,2016,"M03",6.5,2016,"M03",2.2000000000000002,null,null,null,null,null,null,null,null,null,null,null,null,null,null,null,null,null,null,null,null,null,null,null,null,null,null,null,null,null,null,null,null,null,null,null,null,null,null,null,null,null,"New York"]
[null,null,null,2016,"M03",5,2016,"M01",5.0999999999999996,2016,"M03",7.4,2016,"M02",6.6,2016,"M02",2.2999999999999998,null,null,null,null,null,null,null,null,null,null,null,null,null,null,null,null,null,null,null,null,null,null,null,null,null,null,null,null,null,null,null,null,null,null,null,null,null,null,null,null,null,"North Carolina"]
[null,null,null,2016,"M02",4.9000000000000004,null,null,null,2016,"M02",7.7,2016,"M01",6.3,2016,"M01",3.2,null,null,null,null,null,null,null,null,null,null,null,null,null,null,null,null,null,null,null,null,null,null,null,null,null,null,null,null,null,null,null,null,null,null,null,null,null,null,null,null,null,"North Dakota"]
[null,null,null,2016,"M01",4.9000000000000004,null,null,null,2016,"M01",7.4,null,null,null,null,null,null,null,null,null,null,null,null,null,null,null,null,null,null,null,null,null,null,null,null,null,null,null,null,null,null,null,null,null,null,null,null,null,null,null,null,null,null,null,null,null,null,null,"Ohio"]
[null,null,null,null,null,null,null,null,null,null,null,null,null,null,null,null,null,null,null,null,null,null,null,null,null,null,null,null,null,null,null,null,null,null,null,null,null,null,null,null,null,null,null,null,null,null,null,null,null,null,null,null,null,null,null,null,null,null,null,"Oklahoma"]
[null,null,null,null,null,null,null,null,null,null,null,null,null,null,null,null,null,null,null,null,null,null,null,null,null,null,null,null,null,null,null,null,null,null,null,null,null,null,null,null,null,null,null,null,null,null,null,null,null,null,null,null,null,null,null,null,null,null,null,"Oregon"]
[null,null,null,null,null,null,null,null,null,null,null,null,null,null,null,null,null,null,null,null,null,null,null,null,null,null,null,null,null,null,null,null,null,null,null,null,null,null,null,null,null,null,null,null,null,null,null,null,null,null,null,null,null,null,null,null,null,null,null,"Pennsylvania"]
[null,null,null,null,null,null,null,null,null,null,null,null,null,null,null,null,null,null,null,null,null,null,null,null,null,null,null,null,null,null,null,null,null,null,null,null,null,null,null,null,null,null,null,null,null,null,null,null,null,null,null,null,null,null,null,null,null,null,null,"Rhode Island"]
[null,null,null,null,null,null,null,null,null,null,null,null,null,null,null,null,null,null,null,null,null,null,null,null,null,null,null,null,null,null,null,null,null,null,null,null,null,null,null,null,null,null,null,null,null,null,null,null,null,null,null,null,null,null,null,null,null,null,null,"South Carolina"]
[null,null,null,null,null,null,null,null,null,null,null,null,null,null,null,null,null,null,null,null,null,null,null,null,null,null,null,null,null,null,null,null,null,null,null,null,null,null,null,null,null,null,null,null,null,null,null,null,null,null,null,null,null,null,null,null,null,null,null,"South Dakota"]
[null,null,null,null,null,null,null,null,null,null,null,null,null,null,null,null,null,null,null,null,null,null,null,null,null,null,null,null,null,null,null,null,null,null,null,null,null,null,null,null,null,null,null,null,null,null,null,null,null,null,null,null,null,null,null,null,null,null,null,"Tennessee"]
[null,null,null,null,null,null,null,null,null,null,null,null,null,null,null,null,null,null,null,null,null,null,null,null,null,null,null,null,null,null,null,null,null,null,null,null,null,null,null,null,null,null,null,null,null,null,null,null,null,null,null,null,null,null,null,null,null,null,null,"Texas"]
[null,null,null,null,null,null,null,null,null,null,null,null,null,null,null,null,null,null,null,null,null,null,null,null,null,null,null,null,null,null,null,null,null,null,null,null,null,null,null,null,null,null,null,null,null,null,null,null,null,null,null,null,null,null,null,null,null,null,null,"Utah"]
[null,null,null,null,null,null,null,null,null,null,null,null,null,null,null,null,null,null,null,null,null,null,null,null,null,null,null,null,null,null,null,null,null,null,null,null,null,null,null,null,null,null,null,null,null,null,null,null,null,null,null,null,null,null,null,null,null,null,null,"Vermont"]
[null,null,null,null,null,null,null,null,null,null,null,null,null,null,null,null,null,null,null,null,null,null,null,null,null,null,null,null,null,null,null,null,null,null,null,null,null,null,null,null,null,null,null,null,null,null,null,null,null,null,null,null,null,null,null,null,null,null,null,"Virginia"]
[null,null,null,null,null,null,null,null,null,null,null,null,null,null,null,null,null,null,null,null,null,null,null,null,null,null,null,null,null,null,null,null,null,null,null,null,null,null,null,null,null,null,null,null,null,null,null,null,null,null,null,null,null,null,null,null,null,null,null,"Washington"]
[null,null,null,null,null,null,null,null,null,null,null,null,null,null,null,null,null,null,null,null,null,null,null,null,null,null,null,null,null,null,null,null,null,null,null,null,null,null,null,null,null,null,null,null,null,null,null,null,null,null,null,null,null,null,null,null,null,null,null,"West Virginia"]
[null,null,null,null,null,null,null,null,null,null,null,null,null,null,null,null,null,null,null,null,null,null,null,null,null,null,null,null,null,null,null,null,null,null,null,null,null,null,null,null,null,null,null,null,null,null,null,null,null,null,null,null,null,null,null,null,null,null,null,"Wisconsin"]
[null,null,null,null,null,null,null,null,null,null,null,null,null,null,null,null,null,null,null,null,null,null,null,null,null,null,null,null,null,null,null,null,null,null,null,null,null,null,null,null,null,null,null,null,null,null,null,null,null,null,null,null,null,null,null,null,null,null,null,"Wyoming"]
[null,null,null,null,null,null,null,null,null,null,null,null,null,null,null,null,null,null,null,null,null,null,null,null,null,null,null,null,null,null,null,null,null,null,null,null,null,null,null,null,null,null,null,null,null,null,null,null,null,null,null,null,null,null,null,null,null,null,null,"Puerto Rico"]